fUST/lending_fUST_20240517
["ID","MTS","AMOUNT","RATE_DAILY","PERIOD"]
[327281294,1715959845972,-500.0,0.00016986,2]
[327281295,1715959845982,-500.0,0.00016986,2]
[327281297,1715959845991,-500.0,0.00016986,2]
[327281299,1715959846001,-2733.91,0.00016986,2]
[327281301,1715959846010,-488.04384634,0.00016986,2]
[327281303,1715959846023,-500.0,0.00016986,2]
[327281305,1715959846032,-500.0,0.00016986,2]
[327281307,1715959846041,-501.92052098,0.00016986,2]
[327281309,1715959846051,-151.0,0.00016986,2]
[327281311,1715959846060,-513.03,0.00016986,2]
[327281313,1715959846069,-500.0,0.00016986,2]
[327281315,1715959846078,-225.379458,0.00016986,2]
[327281317,1715959846088,-500.0,0.00016986,2]
[327281320,1715959846098,-151.0,0.00016986,2]
[327281322,1715959846108,-500.0,0.00016986,2]
[327281324,1715959846117,-5163.69,0.00016986,2]
[327281326,1715959846126,-504.03311653,0.00016986,2]
[327281327,1715959846135,-1273.25303,0.00016986,2]
[327281330,1715959846145,-151.0,0.00016986,2]
[327281332,1715959846155,-1273.25303,0.00016986,2]
[327281334,1715959846164,-500.0,0.00016986,2]
[327281335,1715959846174,-725.72,0.00016986,2]
[327281338,1715959846183,-223.833696,0.00016986,2]
[327281340,1715959846193,-500.0,0.00016986,2]
[327281342,1715959846203,-500.0,0.00016986,2]
[327281344,1715959846213,-223.833696,0.00016986,2]
[327281346,1715959846223,-500.0,0.00016986,2]
[327281348,1715959846232,-500.0,0.00016986,2]
[327281350,1715959846242,-500.0,0.00016986,2]
[327281352,1715959846251,-500.0,0.00016986,2]
[327281354,1715959846260,-500.0,0.00016986,2]
[327281356,1715959846273,-500.0,0.00016986,2]
[327281358,1715959846282,-500.0,0.00016986,2]
[327281360,1715959846291,-873.99,0.00016986,2]
[327281362,1715959846300,-500.0,0.00016986,2]
[327281364,1715959846309,-20156.27287835,0.00017,2]
[327281366,1715959846318,-325.91812092,0.00017159,2]
[327281368,1715959846327,-150.0,0.00017177,3]
[327281370,1715959846337,-150.0,0.00017177,2]
[327281372,1715959846346,-500.0,0.00017259,2]
[327281374,1715959846355,-500.0,0.00017259,2]
[327281375,1715959846364,-233.223683,0.00017259,2]
[327281377,1715959846373,-233.223683,0.00017259,2]
[327281380,1715959846383,-500.0,0.00017259,2]
[327281382,1715959846393,-151.0,0.00017259,2]
[327281384,1715959846402,-500.0,0.0001726,2]
[327281386,1715959846412,-500.0,0.0001726,2]
[327281388,1715959846421,-500.0,0.0001726,2]
[327281390,1715959846431,-500.0,0.0001726,2]
[327281392,1715959846440,-500.0,0.0001726,2]
[327281393,1715959846451,-500.0,0.0001726,2]
[327281395,1715959846461,-500.0,0.0001726,2]
[327281398,1715959846474,-1067.34,0.0001726,2]
[327281400,1715959846483,-500.0,0.0001726,2]
[327281402,1715959846492,-570.97,0.0001726,2]
[327281403,1715959846501,-530.05,0.0001726,2]
[327281405,1715959846511,-328.9296571,0.0001726,2]
[327281408,1715959846525,-500.0,0.0001726,2]
[327281410,1715959846535,-500.0,0.0001726,2]
[327281412,1715959846544,-3215.18,0.0001726,2]
[327281414,1715959846555,-500.0,0.0001726,2]
[327281415,1715959846565,-500.0,0.0001726,2]
[327281417,1715959846574,-500.0,0.0001726,2]
[327281419,1715959846583,-500.0,0.0001726,2]
[327281421,1715959846592,-649.71,0.0001726,2]
[327281423,1715959846602,-151.0,0.0001726,2]
[327281425,1715959846611,-500.0,0.0001726,2]
[327281427,1715959846621,-500.0,0.0001726,2]
[327281429,1715959846630,-2733.91,0.0001726,2]
[327281431,1715959846639,-173.741279,0.0001726,2]
[327281432,1715959846648,-500.0,0.0001726,2]
[327281433,1715959846657,-500.0,0.0001726,2]
[327281434,1715959846667,-513.03,0.0001726,2]
[327281435,1715959846676,-500.0,0.0001726,2]
[327281437,1715959846686,-500.0,0.0001726,2]
[327281440,1715959846695,-5163.69,0.0001726,2]
[327281442,1715959846705,-500.0,0.0001726,2]
[327281445,1715959846713,-725.72,0.0001726,2]
[327281447,1715959846723,-500.0,0.0001726,2]
[327281449,1715959846733,-500.0,0.0001726,2]
[327281451,1715959846742,-500.0,0.0001726,2]
[327281453,1715959846751,-500.0,0.0001726,2]
[327281455,1715959846760,-606.92,0.0001726,2]
[327281457,1715959846775,-500.0,0.0001726,2]
[327281459,1715959846784,-500.0,0.0001726,2]
[327281461,1715959846793,-500.0,0.0001726,2]
[327281463,1715959846802,-873.99,0.0001726,2]
[327281465,1715959846811,-500.0,0.0001726,2]
[327281467,1715959846819,-577.82429758,0.00017434,2]
[327281469,1715959846829,-151.0,0.00017434,2]
[327281471,1715959846837,-1273.25303,0.00017434,2]
[327281473,1715959846846,-151.0,0.00017434,2]
[327281475,1715959846856,-1273.25303,0.00017434,2]
[327281477,1715959846865,-223.833696,0.00017434,2]
[327281479,1715959846875,-223.833696,0.00017434,2]
[327281481,1715959846885,-797.45776446,0.00017534,3]
[327281483,1715959846894,-500.0,0.00017534,2]
[327281485,1715959846903,-500.0,0.00017534,2]
[327281487,1715959846914,-500.0,0.00017534,2]
[327281489,1715959846923,-1067.34,0.00017534,2]
[327281491,1715959846932,-587.12,0.00017534,2]
[327281493,1715959846941,-500.0,0.00017534,2]
[327281495,1715959846950,-3215.18,0.00017534,2]
[327281497,1715959846960,-500.0,0.00017534,2]
[327281499,1715959846969,-500.0,0.00017534,2]
[327281501,1715959846979,-547.13,0.00017534,2]
[327281503,1715959846988,-151.0,0.00017534,2]
[327281505,1715959846997,-181.450161,0.00017534,2]
[327281507,1715959847006,-181.450161,0.00017534,2]
[327281509,1715959847015,-649.71,0.00017534,2]
[327281511,1715959847032,-188.765642,0.00017534,2]
[327281513,1715959847041,-188.765642,0.00017534,2]
[327281515,1715959847050,-493.74376935,0.00017534,2]
[327281518,1715959847061,-500.0,0.00017534,2]
[327281521,1715959847071,-2733.91,0.00017534,2]
[327281524,1715959847081,-248.448807,0.00017534,2]
[327281527,1715959847090,-248.448807,0.00017534,2]
[327281530,1715959847100,-513.03,0.00017534,2]
[327281533,1715959847109,-500.0,0.00017534,2]
[327281536,1715959847118,-5163.69,0.00017534,2]
[327281538,1715959847128,-500.0,0.00017534,2]
[327281540,1715959847137,-725.72,0.00017534,2]
[327281542,1715959847146,-500.0,0.00017534,2]
[327281544,1715959847156,-459.76,0.00017534,2]
[327281546,1715959847165,-383.03,0.00017534,2]
[327281548,1715959847174,-500.0,0.00017534,2]
[327281550,1715959847183,-500.0,0.00017534,2]
[327281552,1715959847192,-475.72,0.00017534,2]
[327281554,1715959847201,-873.99,0.00017534,2]
[327281556,1715959847210,-235.59,0.00017534,2]
[327281558,1715959847219,-325.91812092,0.0001757,2]
[327281560,1715959847228,-1000.0,0.0001772,2]
[327281562,1715959847238,-500.0,0.00017807,2]
[327281564,1715959847247,-500.0,0.00017808,2]
[327281566,1715959847257,-500.0,0.00017808,2]
[327281568,1715959847266,-500.0,0.00017808,2]
[327281570,1715959847281,-1067.34,0.00017808,2]
[327281572,1715959847291,-500.0,0.00017808,2]
[327281574,1715959847300,-3215.18,0.00017808,2]
[327281588,1715959847417,-500.0,0.00017808,2]
[327281590,1715959847427,-500.0,0.00017808,2]
[327281592,1715959847437,-649.71,0.00017808,2]
[327281594,1715959847446,-327.93509395,0.00017808,2]
[327281596,1715959847457,-2733.91,0.00017808,2]
[327281598,1715959847466,-513.03,0.00017808,2]
[327281600,1715959847479,-5163.69,0.00017808,2]
[327281602,1715959847488,-500.0,0.00017808,2]
[327281604,1715959847498,-725.72,0.00017808,2]
[327281606,1715959847509,-357.07,0.00017808,2]
[327281608,1715959847523,-500.0,0.00017808,2]
[327281610,1715959847532,-605.98,0.00017808,2]
[327281612,1715959847541,-233.223683,0.00017808,2]
[327281614,1715959847552,-233.223683,0.00017808,2]
[327281616,1715959847561,-873.99,0.00017808,2]
[327281618,1715959847571,-151.0,0.00017808,2]
[327281620,1715959847580,-416.98047207,0.00017829,2]
[327281622,1715959847589,-150.0,0.00017888,2]
[327281624,1715959847598,-500.0,0.00017897,2]
[327281626,1715959847608,-500.0,0.00017897,2]
[327281628,1715959847617,-10448.86120355,0.00017898,2]
[327281630,1715959847626,-151.0,0.00017898,2]
[327281632,1715959847635,-151.0,0.00017898,2]
[327281634,1715959847644,-151.0,0.00017898,2]
[327281636,1715959847654,-217.897925,0.00017898,2]
[327281638,1715959847663,-217.897925,0.00017898,2]
[327281640,1715959847673,-497.30225,0.00017898,2]
[327281642,1715959847682,-497.30225,0.00017898,2]
[327281644,1715959847691,-151.0,0.00017898,2]
[327281646,1715959847700,-294.31053376,0.00017955,2]
[327281648,1715959847709,-325.91812092,0.0001798,2]
[327281650,1715959847719,-189.86799103,0.00018,2]
[327281651,1715959847729,-895.80593484,0.00018,2]
[327281652,1715959847738,-2846.29454922,0.00018,2]
[327281653,1715959847748,-4221.46001999,0.00018039,2]
[327281654,1715959847758,-500.0,0.00018079,2]
[327281655,1715959847769,-155.04187543,0.0001808,2]
[327281656,1715959847782,-2594.90254816,0.0001808,2]
[327281657,1715959847791,-156.38717577,0.0001808,2]
[327281658,1715959847800,-151.0,0.0001808,2]
[327281659,1715959847809,-151.0,0.0001808,2]
[327281660,1715959847819,-151.0,0.0001808,2]
[327281661,1715959847829,-151.0,0.0001808,2]
[327281662,1715959847839,-1273.25303,0.0001808,2]
[327281663,1715959847848,-151.0,0.0001808,2]
[327281664,1715959847858,-1273.25303,0.0001808,2]
[327281665,1715959847868,-223.833696,0.0001808,2]
[327281666,1715959847878,-223.833696,0.0001808,2]
[327281667,1715959847887,-500.0,0.00018081,2]
[327281668,1715959847896,-151.0,0.00018081,2]
[327281669,1715959847906,-181.450161,0.00018081,2]
[327281670,1715959847915,-181.450161,0.00018081,2]
[327281671,1715959847925,-188.765642,0.00018081,2]
[327281672,1715959847935,-188.765642,0.00018081,2]
[327281674,1715959847944,-248.448807,0.00018081,2]
[327281676,1715959847953,-248.448807,0.00018081,2]
[327281678,1715959847963,-500.0,0.00018081,2]
[327281680,1715959847972,-500.0,0.00018082,2]
[327281682,1715959847981,-500.0,0.00018082,2]
[327281684,1715959847991,-548.72,0.00018082,2]
[327281686,1715959848000,-1067.34,0.00018082,2]
[327281689,1715959848011,-500.0,0.00018082,2]
[327281691,1715959848024,-3215.18,0.00018082,2]
[327281693,1715959848034,-500.0,0.00018082,2]
[327281695,1715959848043,-500.0,0.00018082,2]
[327281697,1715959848053,-649.71,0.00018082,2]
[327281699,1715959848062,-2733.91,0.00018082,2]
[327281701,1715959848072,-513.03,0.00018082,2]
[327281703,1715959848082,-5163.69,0.00018082,2]
[327281705,1715959848091,-500.0,0.00018082,2]
[327281707,1715959848101,-725.72,0.00018082,2]
[327281709,1715959848110,-443.43,0.00018082,2]
[327281711,1715959848119,-873.99,0.00018082,2]
[327281713,1715959848129,-500.0,0.00018355,2]
[327281715,1715959848139,-500.0,0.00018356,2]
[327281717,1715959848148,-500.0,0.00018356,2]
[327281719,1715959848158,-1067.34,0.00018356,2]
[327281721,1715959848167,-500.0,0.00018356,2]
[327281723,1715959848176,-3215.18,0.00018356,2]
[327281725,1715959848186,-500.0,0.00018356,2]
[327281727,1715959848196,-500.0,0.00018356,2]
[327281729,1715959848206,-649.71,0.00018356,2]
[327281731,1715959848216,-2733.91,0.00018356,2]
[327281733,1715959848226,-513.03,0.00018356,2]
[327281735,1715959848236,-5163.69,0.00018356,2]
[327281737,1715959848245,-500.0,0.00018356,2]
[327281739,1715959848254,-725.72,0.00018356,2]
[327281741,1715959848264,-96.50228617,0.00018356,2]
[327281773,1715959848570,-500.0,0.00016438,2]
[327281775,1715959848580,-500.0,0.00016438,2]
[327281777,1715959848589,-500.0,0.00016712,2]
[327281779,1715959848599,-500.0,0.00016986,2]
[327281781,1715959848608,-500.0,0.0001726,2]
[327281783,1715959848618,-500.0,0.00017534,2]
[327281785,1715959848627,-777.48771383,0.00018356,2]
[327281787,1715959848637,-150.0,0.00018599,2]
[327281789,1715959848646,-500.0,0.00018629,2]
[327281791,1715959848655,-500.0,0.00018629,2]
[327281793,1715959848665,-233.223683,0.00018629,2]
[327281795,1715959848675,-233.223683,0.00018629,2]
[327281797,1715959848684,-151.0,0.00018629,2]
[327281799,1715959848694,-500.0,0.0001863,2]
[327281801,1715959848704,-151.0,0.0001863,2]
[327281803,1715959848713,-151.0,0.0001863,2]
[327281805,1715959848722,-500.0,0.0001863,2]
[327281807,1715959848731,-151.0,0.0001863,2]
[327281809,1715959848740,-151.0,0.0001863,2]
[327281810,1715959848749,-1067.34,0.0001863,2]
[327281812,1715959848758,-31.75487458,0.0001863,2]
[327281827,1715959848892,-500.52781819,0.00016438,2]
[327281829,1715959848902,-500.0,0.00016438,2]
[327281831,1715959848911,-154.81422293,0.00016438,2]
[327281833,1715959848920,-500.0,0.00016712,2]
[327281835,1715959848929,-500.0,0.00016986,2]
[327281837,1715959848938,-500.0,0.0001726,2]
[327281839,1715959848948,-609.97,0.00017534,2]
[327281841,1715959848957,-500.0,0.00017808,2]
[327281842,1715959848966,-500.0,0.00018082,2]
[327281844,1715959848975,-176.26,0.00018356,2]
[327281846,1715959848985,-119.24512542,0.0001863,2]
[327281848,1715959848994,-151.0,0.0001863,2]
[327281850,1715959849004,-283.885906,0.0001863,2]
[327281852,1715959849014,-217.897925,0.0001863,2]
[327281854,1715959849025,-217.897925,0.0001863,2]
[327281856,1715959849034,-160.08,0.0001863,2]
[327281858,1715959849044,-497.30225,0.0001863,2]
[327281860,1715959849053,-3215.18,0.0001863,2]
[327281862,1715959849063,-214.45806422,0.0001863,2]
[327281864,1715959849073,-497.30225,0.0001863,2]
[327281866,1715959849082,-500.0,0.0001863,2]
[327281868,1715959849092,-649.71,0.0001863,2]
[327281870,1715959849102,-2733.91,0.0001863,2]
[327281872,1715959849112,-513.03,0.0001863,2]
[327281874,1715959849121,-5163.69,0.0001863,2]
[327281877,1715959849131,-1273.25303,0.0001863,2]
[327281878,1715959849141,-151.0,0.0001863,2]
[327281880,1715959849151,-1273.25303,0.0001863,2]
[327281882,1715959849161,-500.0,0.0001863,2]
[327281883,1715959849170,-725.72,0.0001863,2]
[327281884,1715959849180,-223.833696,0.0001863,2]
[327281885,1715959849190,-223.833696,0.0001863,2]
[327281886,1715959849200,-873.99,0.0001863,2]
[327281888,1715959849210,-299.83933955,0.0001881,2]
[327281889,1715959849219,-500.0,0.00018899,2]
[327281890,1715959849230,-4936.70192135,0.000189,2]
[327281891,1715959849239,-500.0,0.00018904,2]
[327281892,1715959849248,-500.0,0.00018904,2]
[327281893,1715959849257,-1067.34,0.00018904,2]
[327281894,1715959849267,-151.0,0.00018904,2]
[327281895,1715959849279,-151.0,0.00018904,2]
[327281896,1715959849288,-151.0,0.00018904,2]
[327281898,1715959849298,-3215.18,0.00018904,2]
[327281899,1715959849307,-500.0,0.00018904,2]
[327281900,1715959849316,-151.0,0.00018904,2]
[327281901,1715959849326,-181.450161,0.00018904,2]
[327281902,1715959849335,-181.450161,0.00018904,2]
[327281903,1715959849344,-649.71,0.00018904,2]
[327281904,1715959849353,-188.765642,0.00018904,2]
[327281905,1715959849362,-188.765642,0.00018904,2]
[327281906,1715959849372,-2733.91,0.00018904,2]
[327281907,1715959849381,-248.448807,0.00018904,2]
[327281908,1715959849390,-248.448807,0.00018904,2]
[327281909,1715959849399,-513.03,0.00018904,2]
[327281910,1715959849408,-5163.69,0.00018904,2]
[327281912,1715959849417,-500.0,0.00018904,2]
[327281914,1715959849427,-725.72,0.00018904,2]
[327281915,1715959849436,-873.99,0.00018904,2]
[327281917,1715959849446,-500.0,0.00018999,2]
[327281919,1715959849458,-375.13545042,0.00018999,2]
[327281921,1715959849468,-500.0,0.00018999,2]
[327281923,1715959849480,-500.0,0.00018999,2]
[327281924,1715959849490,-493.04170417,0.00018999,2]
[327281925,1715959849500,-500.0,0.00018999,2]
[327281927,1715959849511,-500.0,0.00018999,2]
[327281929,1715959849523,-500.0,0.00018999,2]
[327281931,1715959849532,-15817.26207375,0.00019,2]
[327281933,1715959849544,-3842.89023298,0.00019,2]
[327281935,1715959849556,-353.095,0.00019,2]
[327282025,1715959850500,14722.73871489,0.00023,30]
[327282212,1715959894707,211.85506162,0.00014791,2]
[327282213,1715959909739,154.75239617,9.999e-05,2]
[327282214,1715959931753,154.75239617,0.000137,2]
[327282215,1715959950562,684.49986273,9.999e-05,2]
[327282216,1715959954250,1134.45406541,0.00015,2]
[327282217,1715959956943,277.66,0.00010959,2]
[327282218,1715959962947,281.31656163,9.999e-05,2]
[327282219,1715959989452,528.36551602,9.999e-05,2]
[327282220,1715960001128,1237.29190451,0.00023,30]
[327282222,1715960029361,320.02,0.00010959,2]
[327282223,1715960049577,1237.29190451,0.00023,30]
[327282224,1715960082827,25403.6586723,0.00014398,2]
[327282225,1715960098460,1237.29190451,0.00023,30]
[327282226,1715960148419,19774.73221334,0.00014854,2]
[327282227,1715960151195,1237.29190451,0.00023,30]
[327282228,1715960183658,157.91467169,9.999e-05,2]
[327282229,1715960200443,1237.29190451,0.00023,30]
[327282231,1715960324400,675.749847,9.999e-05,2]
[327282232,1715960346055,154.73694719,9.999e-05,2]
[327282233,1715960348518,452.46697714,9.999e-05,2]
[327282234,1715960364114,1043.11503847,9.999e-05,2]
[327282235,1715960367947,1350.24290286,9.999e-05,2]
[327282236,1715960420044,658.06565203,9.999e-05,2]
[327282237,1715960475778,690.11886562,9.999e-05,2]
[327282238,1715960479414,7213.98,0.00025,60]
[327282239,1715960515648,7213.98,0.00025,60]
[327282243,1715960660355,154.73694719,0.000137,2]
[327282244,1715960743897,1021.2510867,0.00013852,2]
[327282245,1715960758813,1187.0538855,0.00013844,2]
[327282246,1715960796010,1350.24290286,9.999e-05,2]
[327282247,1715960853106,-1779.09652108,0.00014808,2]
[327282255,1715960956809,164.10523627,0.00014714,2]
[327282256,1715960959681,99.19232123,9.999e-05,2]
[327282257,1715960959703,590.92654439,9.999e-05,2]
[327282258,1715960967092,-896.450478,0.00014814,2]
[327282259,1715960967116,-10507.25045734,0.00014863,2]
[327282260,1715960967137,-2677.50168314,0.00014864,2]
[327282261,1715960967156,-1734.38215963,0.00014864,2]
[327282262,1715960967177,-471.32937038,0.00014864,2]
[327282265,1715960988944,448.225239,0.00014683,2]
[327282267,1715961002120,1637.60821661,0.00014764,2]
[327282268,1715961002142,260.85550723,0.00014764,2]
[327282269,1715961002163,151.0,0.00014764,2]
[327282270,1715961002183,243.14959112,0.00014764,2]
[327282271,1715961002206,235.03359124,0.00014764,2]
[327282272,1715961002227,221.28872477,0.00014764,2]
[327282273,1715961002249,155.40299661,0.00014764,2]
[327282383,1715961038722,-690.11886562,0.00014763,2]
[327282386,1715961038733,-2293.5664244,0.00014764,2]
[327282388,1715961038747,-13.05437379,0.00014864,2]
[327282390,1715961038758,-155.17075593,0.00014865,2]
[327282392,1715961038770,-1447.03295784,0.00014865,2]
[327282394,1715961038781,-24900.0,0.00014866,2]
[327282396,1715961038792,-2107.25657902,0.00015,2]
[327282399,1715961038804,-164.10523627,0.00015038,2]
[327282401,1715961038815,-164.10523627,0.00015362,2]
[327282403,1715961038826,-164.10523627,0.00015686,2]
[327282405,1715961038838,-227.73640556,0.000157,2]
[327282407,1715961038854,-1974.99952529,0.0001591,2]
[327282410,1715961038865,-164.10523627,0.0001601,2]
[327282429,1715961038877,-672.70350218,0.00016334,2]
[327282432,1715961039070,-164.10523627,0.00016334,2]
[327282435,1715961039080,-672.70350214,0.00016404,2]
[327282437,1715961039090,-186.62571484,0.00016432,2]
[327282439,1715961039101,-154.89332332,0.00016432,2]
[327282441,1715961039111,-155.46832006,0.00016432,2]
[327282442,1715961039121,-155.00453071,0.00016432,2]
[327282444,1715961039130,-157.27495146,0.00016432,2]
[327282446,1715961039140,-834.89269963,0.00016432,2]
[327282448,1715961039149,-156.25790891,0.00016432,2]
[327282450,1715961039159,-905.19763904,0.00016432,2]
[327282452,1715961039171,-154.79876161,0.00016432,2]
[327282454,1715961039180,-155.13326488,0.00016432,2]
[327282456,1715961039189,-702.05425125,0.00016432,2]
[327282459,1715961039199,-684.29354561,0.00016432,2]
[327282461,1715961039208,-527.69716187,0.00016432,2]
[327282462,1715961039218,-154.7987647,0.00016432,2]
[327282464,1715961039228,-663.34487783,0.00016432,2]
[327282466,1715961039239,-209.90249857,0.00016432,2]
[327282468,1715961039248,-442.60736131,0.00016432,2]
[327282470,1715961039258,-801.06450343,0.00016432,2]
[327282472,1715961039267,-262.03324982,0.00016432,2]
[327282474,1715961039277,-154.79876161,0.00016432,2]
[327282476,1715961039286,-268.06797113,0.00016433,2]
[327282478,1715961039296,-184.43582576,0.00016433,2]
[327282480,1715961039305,-943.59980691,0.00016434,2]
[327282482,1715961039314,-2594.90254816,0.00016434,2]
[327282484,1715961039324,-194.1642929,0.00016434,2]
[327282486,1715961039334,-155.16954056,0.00016434,2]
[327282489,1715961039344,-341.03127753,0.00016434,2]
[327282492,1715961039353,-5023.17774762,0.00016434,2]
[327282495,1715961039366,-17088.59396388,0.00016434,2]
[327282498,1715961039376,-309.48934953,0.00016434,2]
[327282501,1715961039385,-155.35664574,0.00016434,2]
[327282504,1715961039395,-429.94245468,0.00016434,2]
[327282507,1715961039404,-2792.7493606,0.00016434,2]
[327282510,1715961039414,-1336.72657085,0.00016434,2]
[327282513,1715961039425,-331.17109693,0.00016434,2]
[327282516,1715961039434,-166.35425316,0.00016434,2]
[327282519,1715961039444,-1579.70306251,0.00016435,2]
[327282522,1715961039453,-156.36643608,0.00016435,2]
[327282525,1715961039465,-155.1039271,0.00016436,2]
[327282527,1715961039475,-1682.5168572,0.00016436,2]
[327282529,1715961039487,-1890.73342917,0.00016436,2]
[327282531,1715961039496,-3170.57836619,0.00016436,2]
[327282534,1715961039506,-242.93656346,0.00016436,2]
[327282536,1715961039515,-497.93597077,0.00016436,2]
[327282538,1715961039526,-1634.82759572,0.00016437,2]
[327282541,1715961039536,-196.28366287,0.00016437,2]
[327282542,1715961039546,-7825.71997596,0.00016438,3]
[327282562,1715961039695,-8.27738303,0.00016438,3]
[327282564,1715961039705,-500.0,0.00016438,2]
[327282566,1715961039715,-500.0,0.00016438,2]
[327282568,1715961039724,-500.0,0.00016438,2]
[327282570,1715961039735,-305.89914608,0.00016438,2]
[327282571,1715961039744,-500.0,0.00016438,2]
[327282574,1715961039754,-500.0,0.00016438,2]
[327282576,1715961039764,-500.0,0.00016438,2]
[327282578,1715961039773,-500.0,0.00016438,2]
[327282579,1715961039782,-500.0,0.00016438,2]
[327282581,1715961039791,-500.0,0.00016438,2]
[327282583,1715961039801,-500.0,0.00016438,2]
[327282585,1715961039810,-500.0,0.00016438,2]
[327282588,1715961039820,-500.0,0.00016438,2]
[327282589,1715961039830,-500.0,0.00016438,2]
[327282591,1715961039839,-500.0,0.00016438,2]
[327282593,1715961039850,-500.0,0.00016438,2]
[327282595,1715961039860,-500.0,0.00016438,2]
[327282597,1715961039870,-437.71607686,0.00016438,2]
[327282600,1715961039883,-62.28392314,0.00016438,2]
[327282602,1715961039892,-500.0,0.00016438,2]
[327282604,1715961039903,-167.96240653,0.00016438,2]
[327282610,1715961039959,-332.03759347,0.00016438,2]
[327282612,1715961039969,-504.49246044,0.00016438,2]
[327282614,1715961039978,-500.0,0.00016438,2]
[327282616,1715961039989,-500.0,0.00016438,2]
[327282618,1715961039998,-501.56644249,0.00016438,2]
[327282620,1715961040008,-500.0,0.00016438,2]
[327282622,1715961040017,-500.0,0.00016438,2]
[327282624,1715961040026,-500.0,0.00016438,2]
[327282626,1715961040036,-500.0,0.00016438,2]
[327282628,1715961040045,-500.0,0.00016438,2]
[327282630,1715961040054,-500.0,0.00016438,2]
[327282632,1715961040064,-500.0,0.00016438,2]
[327282634,1715961040073,-500.0,0.00016438,2]
[327282636,1715961040082,-500.0,0.00016438,2]
[327282638,1715961040091,-500.0,0.00016438,2]
[327282640,1715961040101,-500.0,0.00016438,2]
[327282642,1715961040110,-496.33271539,0.00016438,2]
[327282644,1715961040119,-471.69264885,0.00016438,2]
[327282646,1715961040128,-500.0,0.00016438,2]
[327282648,1715961040138,-500.0,0.00016438,2]
[327282650,1715961040147,-500.0,0.00016438,2]
[327282652,1715961040156,-500.0,0.00016438,2]
[327282654,1715961040166,-500.0,0.00016438,2]
[327282656,1715961040175,-500.0,0.00016438,2]
[327282658,1715961040185,-500.0,0.00016438,2]
[327282660,1715961040194,-500.0,0.00016438,2]
[327282662,1715961040203,-500.0,0.00016438,2]
[327282664,1715961040212,-500.0,0.00016438,2]
[327282666,1715961040221,-500.0,0.00016438,2]
[327282668,1715961040230,-500.0,0.00016438,2]
[327282670,1715961040242,-549.2543388,0.00016438,2]
[327282672,1715961040251,-505.34706848,0.00016438,2]
[327282674,1715961040260,-500.0,0.00016438,2]
[327282676,1715961040271,-507.89263316,0.00016438,2]
[327282678,1715961040280,-500.0,0.00016438,2]
[327282680,1715961040289,-504.44651926,0.00016438,2]
[327282682,1715961040298,-505.30069691,0.00016438,2]
[327282684,1715961040308,-562.74424127,0.00016438,2]
[327282711,1715961040569,-86.62476567,0.00016438,2]
[327282713,1715961040579,-500.0,0.00016438,2]
[327282715,1715961040589,-511.63054028,0.00016438,2]
[327282717,1715961040599,-500.89705173,0.00016438,2]
[327282719,1715961040608,-505.83854385,0.00016438,2]
[327282721,1715961040618,-500.0,0.00016438,2]
[327282723,1715961040627,-502.40470271,0.00016438,2]
[327282725,1715961040637,-500.0,0.00016438,2]
[327282727,1715961040646,-501.15290642,0.00016438,2]
[327282729,1715961040656,-500.0,0.00016438,2]
[327282731,1715961040665,-506.33366559,0.00016438,2]
[327282733,1715961040673,-500.0,0.00016438,2]